bitfinex/quotes_ETHUSD_20240821
["timestamp","ask_amount","ask_price","bid_price","bid_amount"]
[1724282022323,0.03905751,2636.4,2636.2,3.79324]
[1724282024364,0.39649553,2636.6,2636.2,3.79324]
[1724282024509,0.03894797,2636.3,2636.2,3.79324]
[1724282024709,0.39649553,2636.6,2636.2,3.79324]
[1724282024945,0.03894797,2636.3,2636.2,3.79324]
[1724282025152,0.39649553,2636.6,2636.2,3.79324]
[1724282025351,0.03894797,2636.3,2636.2,3.79324]
[1724282025552,0.39649553,2636.6,2636.2,3.79324]
[1724282025762,0.03894797,2636.3,2636.2,3.79324]
[1724282025912,0.39649553,2636.6,2636.2,3.79324]
[1724282026110,0.03894797,2636.3,2636.2,3.79324]
[1724282026339,0.39649553,2636.6,2636.2,3.79324]
[1724282026645,0.03894797,2636.3,2636.2,3.79324]
[1724282026866,0.39649553,2636.6,2636.2,3.79324]
[1724282027025,0.03894797,2636.3,2636.2,3.79324]
[1724282027350,0.03894797,2636.3,2636.2,7.58649]
[1724282027554,0.39649553,2636.6,2636.2,8.738939]
[1724282027722,0.39649553,2636.6,2636.4,3.79291]
[1724282028452,0.39649553,2636.6,2636.5,3.7929]
[1724282029247,0.39649553,2636.6,2636.3,6.21718]
[1724282029418,0.39649553,2636.6,2636.4,3.7921194]
[1724282035287,0.39649553,2636.6,2636.3,6.21727]
[1724282037970,0.03921194,2636.5,2636.3,6.21727]
[1724282038469,0.03921194,2636.5,2636.3,2.4241]
[1724282038765,3.79306,2636.4,2636.0,2.3093]
[1724282038946,3.83216242,2636.4,2636.0,2.3093]
[1724282039469,0.39647135,2636.3,2636.0,2.3093]
[1724282039815,0.03889083,2636.2,2636.0,2.3093]
[1724282040016,0.03889083,2636.2,2636.0,6.10291]
[1724282040335,0.03873639,2636.1,2636.0,6.10291]
[1724282040568,0.39647135,2636.3,2636.0,6.10291]
[1724282040862,0.03873639,2636.1,2636.0,6.10291]
[1724282041068,0.39647135,2636.3,2636.0,6.19821]
[1724282041435,0.03884219,2636.2,2636.0,6.19821]
[1724282041853,0.39647135,2636.3,2636.0,6.19821]
[1724282042040,0.03873639,2636.1,2636.0,6.19821]
[1724282042887,0.39647135,2636.3,2636.0,6.19821]
[1724282043100,0.03873639,2636.1,2636.0,6.19821]
[1724282043291,0.39647135,2636.3,2636.0,6.19821]
[1724282043506,0.03873639,2636.1,2636.0,6.19821]
[1724282044142,0.39647135,2636.3,2636.0,6.19821]
[1724282044391,0.03873639,2636.1,2636.0,6.19821]
[1724282044547,0.39647135,2636.3,2636.0,6.19821]
[1724282044746,0.03873639,2636.1,2636.0,6.19821]
[1724282044985,0.39647135,2636.3,2636.1,3.79348]
[1724282047042,0.39647135,2636.3,2636.0,6.19821]
[1724282047347,0.81541049,2636.3,2636.0,3.79361]
[1724282048374,0.81541049,2636.3,2636.1,3.79348]
[1724282052615,0.81541049,2636.3,2636.0,3.7936]
[1724282052815,0.03714989,2636.2,2636.0,3.7936]
[1724282052996,0.39647135,2636.3,2636.0,3.7936]
[1724282053165,0.03704407,2636.1,2636.0,3.7936]
[1724282053367,0.39647135,2636.3,2636.0,3.7936]
[1724282053613,0.03704407,2636.1,2636.0,3.7936]
[1724282053810,0.39647135,2636.3,2636.0,3.7936]
[1724282053967,0.03704407,2636.1,2636.0,3.7936]
[1724282054169,0.03704407,2636.1,2635.8,4.1154]
[1724282054170,0.39647135,2636.3,2635.8,2.4974]
[1724282054427,0.39647135,2636.3,2635.6,2.4517]
[1724282054428,0.03704407,2636.1,2635.6,2.4517]
[1724282054709,8.30075135,2636.3,2635.6,2.4517]
[1724282054863,0.03683855,2636.0,2635.6,2.4517]
[1724282055060,3.79365,2636.0,2635.5,11.28429]
[1724282055265,0.03673271,2635.9,2635.5,11.28429]
[1724282055503,2.29103271,2635.9,2635.5,11.28429]
[1724282055910,2.29103271,2635.9,2635.6,3.79419]
[1724282055911,0.03673271,2635.9,2635.6,3.79419]
[1724282056266,6.04784,2636.1,2635.6,7.58824]
[1724282056467,0.03671661,2635.8,2635.6,3.79411]
[1724282056701,6.04784,2636.1,2635.6,3.79411]
[1724282056916,0.03658794,2635.7,2635.6,3.79411]
[1724282057072,6.04784,2636.1,2635.6,3.79411]
[1724282057274,0.03653722,2635.7,2635.6,3.79411]
[1724282057509,0.64442932,2636.0,2635.6,3.79411]
[1724282057674,0.03661063,2635.7,2635.6,3.79411]
[1724282057867,0.64442932,2636.0,2635.5,7.49]
[1724282058098,0.03663853,2635.7,2635.5,7.49]
[1724282058299,0.64442932,2636.0,2635.5,11.28432]
[1724282058300,0.03653267,2635.6,2635.5,11.28432]
[1724282058716,0.64442932,2636.0,2635.5,11.28432]
[1724282058926,0.03640628,2635.6,2635.5,11.28432]
[1724282059136,7.66584,2636.1,2635.5,11.28432]
[1724282059355,0.03640628,2635.6,2635.5,11.28432]
[1724282059499,11.45941,2636.1,2635.5,11.28432]
[1724282059839,0.03683104,2636.0,2635.5,11.28432]
[1724282060027,0.03683104,2636.0,2635.5,3.79432]
[1724282060849,3.83051104,2636.0,2635.5,3.79427]
[1724282061828,0.03683104,2636.0,2635.6,3.79418]
[1724282062035,0.03683104,2636.0,2635.7,2.4357]
[1724282062217,0.03683104,2636.0,2635.8,3.79382]
[1724282062548,0.39645322,2636.2,2635.8,3.79382]
[1724282062762,0.03522328,2635.9,2635.8,3.79382]
[1724282063046,0.39645322,2636.2,2635.8,3.79382]
[1724282063245,0.03522328,2635.9,2635.8,3.79382]
[1724282063448,0.39645322,2636.2,2635.8,3.79382]
[1724282063751,0.03522328,2635.9,2635.8,3.79382]
[1724282063962,0.39645322,2636.2,2635.8,3.79382]
[1724282064100,0.03543494,2636.1,2635.8,3.79382]
[1724282064302,0.03522328,2635.9,2635.8,7.58773]
[1724282064551,0.39645322,2636.2,2636.0,3.79355]
[1724282065736,0.39645322,2636.2,2636.0,3.79352]
[1724282067348,0.39645322,2636.2,2635.9,4.0537]
[1724282067349,0.39645322,2636.2,2636.1,3.79348]
[1724282070915,0.39645322,2636.2,2636.1,12.47145666]
[1724282071117,2.37778241,2637.0,2636.6,3.79268]
[1724282071424,2.9726327,2637.0,2636.7,2.333]
[1724282071613,0.39634842,2636.9,2636.7,2.333]
[1724282072558,0.39634842,2636.9,2636.8,3.79247]
[1724282072713,0.39634842,2636.9,2636.7,2.333]
[1724282073065,0.39634842,2636.9,2636.7,6.12557]
[1724282076355,0.23764857,2636.9,2636.7,6.12557]
[1724282076755,3.7919,2637.2,2636.7,6.12557]
[1724282077604,3.7919,2637.2,2636.7,7.279189]
[1724282079175,8.55082465,2637.4,2636.8,3.79246]
[1724282079410,6.79178,2637.3,2636.8,3.79239]
[1724282079877,3.79191,2637.2,2636.8,3.79239]
[1724282081601,6.79175,2637.3,2636.8,3.79239]
[1724282083297,3.79191,2637.2,2636.8,3.79239]
[1724282085572,6.79175,2637.3,2636.8,7.58475]
[1724282085737,6.79175,2637.3,2636.8,4.44310535]
[1724282085939,6.79175,2637.3,2636.8,3.79236]
[1724282086636,3.79191,2637.2,2636.8,3.79236]
[1724282087220,3.79191,2637.2,2636.7,2.333]
[1724282087427,3.79206,2637.1,2636.7,2.333]
[1724282087625,3.79206,2637.1,2636.7,6.1256]
[1724282088016,3.0,2637.3,2636.7,6.1256]
[1724282088221,3.0,2637.3,2636.8,3.79243]
[1724282088222,3.79191,2637.2,2636.8,3.79243]
[1724282090923,3.0,2637.3,2636.9,6.15308]
[1724282092080,6.79175,2637.3,2636.9,6.15308]
[1724282092282,0.39639736,2637.2,2636.9,6.15308]
[1724282093139,0.39639736,2637.2,2636.9,2.3608]
[1724282096585,4.18830736,2637.2,2636.9,2.3608]
[1724282096767,0.39639736,2637.2,2636.9,2.3608]
[1724282097146,0.39639736,2637.2,2637.0,3.79212]
[1724282097343,0.39639736,2637.2,2637.1,6.12364]
[1724282098953,0.39639736,2637.2,2637.1,7.115216]
[1724282101816,0.39639736,2637.2,2637.1,10.907256]
[1724282104114,0.39639736,2637.2,2637.1,7.115216]
[1724282106205,0.39639736,2637.2,2637.1,10.907256]
[1724282107209,0.39639736,2637.2,2637.1,14.699296]
[1724282107388,0.39639736,2637.2,2637.1,10.907256]
[1724282109465,0.39639736,2637.2,2637.1,7.115216]
[1724282111549,0.39639736,2637.2,2637.1,10.907256]
[1724282113220,0.30553629,2637.2,2637.1,10.907256]
[1724282113892,0.30553629,2637.2,2637.1,7.115216]
[1724282114095,0.30553629,2637.2,2637.1,3.79204]
[1724282124838,0.30553629,2637.2,2637.1,7.58408]
[1724282125056,0.30553629,2637.2,2637.1,9.93198]
[1724282126143,0.30553629,2637.2,2637.1,13.72402]
[1724282126341,0.30553629,2637.2,2637.1,9.93198]
[1724282126646,0.30553629,2637.2,2637.1,11.466183]
[1724282126851,0.30553629,2637.2,2637.1,15.258223]
[1724282128646,0.30553629,2637.2,2637.1,11.466183]
[1724282140083,0.30553629,2637.2,2637.1,15.258223]
[1724282140248,0.30553629,2637.2,2637.1,22.52489586]
[1724282140458,0.30553629,2637.2,2637.1,18.73285586]
[1724282141127,0.30553629,2637.2,2637.1,19.49220475]
[1724282141325,0.30553629,2637.2,2637.1,22.52489586]
[1724282141494,0.30553629,2637.2,2637.1,23.28423531]
[1724282141705,0.30553629,2637.2,2637.1,23.28422654]
[1724282142052,0.03024224,2637.4,2637.3,11.37525]
[1724282142202,0.03024224,2637.4,2637.3,15.90098286]
[1724282143213,0.03024224,2637.4,2637.3,15.42635]
[1724282143413,0.03024224,2637.4,2637.3,15.90092112]
[1724282143820,0.03024224,2637.4,2637.3,19.69267112]
[1724282144133,0.03024224,2637.4,2637.3,26.1238848]
[1724282144469,4.79110541,2638.7,2638.3,3.79029]
[1724282145135,4.79092608,2638.7,2638.3,3.79029]
[1724282145317,2.4151,2638.7,2638.3,3.79025]
[1724282145517,6.16548608,2638.8,2638.3,3.79025]
[1724282145749,6.16548608,2638.8,2638.3,7.58049]
[1724282146918,6.16548608,2638.8,2638.3,3.79024]
[1724282148369,3.78966,2638.8,2638.3,3.79024]
[1724282149690,3.78966,2638.8,2638.3,7.58048]
[1724282149843,3.78966,2638.8,2638.3,7.58047]
[1724282150791,3.78966,2638.8,2638.3,3.79023]
[1724282150975,3.78966,2638.8,2638.3,7.58046]
[1724282151163,3.78966,2638.8,2638.3,3.79023]
[1724282151994,3.78966,2638.8,2638.3,7.58047]
[1724282152853,3.78966,2638.8,2638.3,3.79023]
[1724282153087,0.607956,2638.7,2638.3,7.58048]
[1724282154060,0.607956,2638.7,2638.5,3.79001]
[1724282154294,3.0,2638.9,2638.5,3.79001]
[1724282154997,3.7894,2639.0,2638.5,3.79001]
[1724282155201,7.57879,2639.0,2638.5,3.79001]
[1724282156147,3.78939,2639.0,2638.5,3.79001]
[1724282156343,7.5788,2639.0,2638.5,3.79001]
[1724282156549,3.78939,2639.0,2638.6,3.78986]
[1724282156764,6.75293804,2639.1,2638.6,3.78986]
[1724282156967,3.0,2639.0,2638.6,3.78986]
[1724282157580,0.39620901,2638.9,2638.6,3.78986]
[1724282158195,0.39620901,2638.9,2638.7,3.78973]
[1724282158494,0.39620901,2638.9,2638.6,3.78988]
[1724282158652,0.39620901,2638.9,2638.5,3.79001]
[1724282161314,7.02930891,2638.9,2638.2,2.4777]
[1724282161586,7.02930891,2638.9,2638.3,3.7903]
[1724282161587,3.78984,2638.7,2638.3,3.7903]
[1724282161867,3.78961,2638.8,2638.3,7.58053]
[1724282162469,3.78961,2638.8,2638.3,7.58047]
[1724282164412,3.78961,2638.8,2638.4,3.79016]
[1724282164627,7.57961,2638.7,2638.2,6.26813]
[1724282164767,7.57961,2638.7,2638.0,3.79066]
[1724282164768,3.79004,2638.5,2638.0,3.79066]
[1724282164963,3.79004,2638.5,2638.0,6.07896]
[1724282166228,4.2085999,2638.5,2637.8,3.79093]
[1724282166382,3.79062,2638.1,2637.5,6.19815]
[1724282166786,3.79062,2638.1,2637.6,3.79124]
[1724282167401,3.79062,2638.1,2637.7,3.79118]
[1724282168035,3.79046,2638.2,2637.7,3.79118]
[1724282168487,4.67460499,2638.3,2637.7,3.7911]
[1724282169235,4.67460499,2638.3,2637.8,3.79103]
[1724282170483,4.67460499,2638.3,2637.7,3.7911]
[1724282170847,3.79047,2638.2,2637.7,3.79108]
[1724282171215,3.79047,2638.2,2637.7,7.58218]
[1724282171415,3.79047,2638.2,2637.8,3.79102]
[1724282172814,0.39616624,2638.1,2637.8,3.79102]
[1724282173349,0.39616624,2638.1,2637.8,7.58204]
[1724282173502,0.39616624,2638.1,2637.8,3.79102]
[1724282174453,0.39616624,2638.1,2637.8,7.58198]
[1724282174617,0.39616624,2638.1,2637.9,3.79089]
[1724282175626,0.39616624,2638.1,2638.0,9.1995]
[1724282175924,0.39616624,2638.1,2638.0,3.79075]
[1724282177256,0.39616624,2638.1,2638.0,6.28765]
[1724282178267,0.39616624,2638.1,2637.8,3.79102]
[1724282178562,0.39616624,2638.1,2638.0,3.79075]
[1724282182242,0.39616624,2638.1,2638.0,4.798617]
[1724282184351,0.39616624,2638.1,2638.0,6.26895]
[1724282187070,0.39616624,2638.1,2638.0,10.0597]
[1724282187974,0.39616624,2638.1,2638.0,6.26895]
[1724282189223,0.39616624,2638.1,2637.7,5.40911]
[1724282189471,0.39616624,2638.1,2637.8,3.79096]
[1724282190691,0.39616624,2638.1,2637.7,3.79116]
[1724282191652,0.39616624,2638.1,2637.8,3.79103]
[1724282193157,0.39616624,2638.1,2637.8,3.79096]
[1724282195292,0.39616624,2638.1,2637.8,7.58193]
[1724282195663,0.39616624,2638.1,2637.8,3.79096]
[1724282196074,0.39616624,2638.1,2637.8,7.58193]
[1724282196277,0.39616624,2638.1,2637.9,3.79089]
[1724282196657,0.39616624,2638.1,2637.9,6.26909]
[1724282206533,0.39616624,2638.1,2637.9,3.79089]
[1724282213439,2.77364181,2638.1,2637.8,7.58192]
[1724282213738,2.77364181,2638.1,2637.8,7.58193]
[1724282213912,2.77364181,2638.1,2637.8,3.79096]
[1724282214096,0.39616624,2638.1,2637.8,3.79096]
[1724282214297,2.77364181,2638.1,2637.8,3.79096]
[1724282214616,0.39616624,2638.1,2637.8,3.79096]
[1724282214813,0.39616624,2638.1,2637.8,7.58193]
[1724282215434,0.39616624,2638.1,2637.8,3.79096]
[1724282215747,0.39616624,2638.1,2637.6,3.7912]
[1724282215748,3.43184995,2638.1,2637.6,3.7912]
[1724282215952,2.3791219,2637.9,2637.4,3.79152]
[1724282216249,4.7618219,2637.9,2637.4,7.58305]
[1724282216468,8.5527219,2637.9,2637.4,3.79152]
[1724282216630,0.39616013,2637.8,2637.4,7.58305]
[1724282216845,0.39616013,2637.8,2637.4,3.79152]
[1724282217018,6.56633203,2637.8,2637.4,3.79152]
[1724282217221,4.18721013,2637.8,2637.3,2.4656]
[1724282217416,6.3798219,2637.6,2637.1,19.44]
[1724282217660,6.3798219,2637.6,2636.8,6.25797]
[1724282217661,2.3791219,2637.4,2636.8,6.25797]
[1724282217831,6.1707619,2637.4,2636.9,3.79224]
[1724282218031,6.1707619,2637.4,2636.8,2.4656]
[1724282218334,4.40896619,2637.3,2636.7,3.7926]
[1724282218529,4.40896619,2637.3,2636.6,5.41067]
[1724282218530,2.3827,2637.2,2636.6,5.41067]
[1724282218737,2.3827,2637.2,2636.7,3.79249]
[1724282219161,2.3827,2637.2,2636.6,5.41067]
[1724282219362,2.3827,2637.2,2636.6,3.79267]
[1724282219532,6.17471,2637.2,2636.6,3.79267]
[1724282219730,3.79205,2637.1,2636.6,3.79267]
[1724282220332,8.55021896,2637.2,2636.6,3.79267]
[1724282220982,8.55020896,2637.2,2636.6,3.79267]
[1724282221182,3.79206,2637.1,2636.6,3.79267]
[1724282221375,3.79221,2637.0,2636.5,2.4656]
[1724282221678,3.79241,2636.9,2636.4,3.79297]
[1724282222185,3.79277,2636.6,2636.0,6.09681]
[1724282222487,3.79259,2636.8,2636.1,1.618]
[1724282222688,3.79259,2636.8,2636.2,3.79322]
[1724282222850,3.79259,2636.8,2636.2,7.58646]
[1724282223048,3.79259,2636.8,2636.2,4.943996]
[1724282223974,7.58457,2637.0,2636.3,7.71437]
[1724282224168,6.79236,2636.9,2636.3,7.71437]
[1724282225385,3.79209,2637.1,2636.4,3.79296]
[1724282225565,2.3627,2637.4,2636.5,4.300596]
[1724282225566,3.79241,2636.9,2636.5,4.300596]
[1724282225764,3.79241,2636.9,2636.5,2.3033]
[1724282225988,7.58508,2636.8,2636.3,3.9996]
[1724282226487,3.79248,2636.8,2636.3,3.9996]
[1724282226692,3.79248,2636.8,2636.3,7.79278]
[1724282226835,6.04567,2637.0,2636.4,1.158604]
[1724282226836,3.79236,2636.9,2636.4,1.158604]
[1724282227238,3.79236,2636.9,2636.4,4.951644]
[1724282227536,3.79236,2636.9,2636.3,7.7927]
[1724282228190,3.79236,2636.9,2636.3,11.58581]
[1724282228397,3.79236,2636.9,2636.3,7.7927]
[1724282228690,3.79269,2636.7,2636.3,2.3816]
[1724282228841,8.203699,2636.7,2636.3,2.3816]
[1724282229541,3.79269,2636.7,2636.3,3.9996]
[1724282230440,3.79269,2636.7,2636.3,2.3816]
[1724282231088,6.18272,2636.9,2636.1,9.20478]
[1724282231089,3.793,2636.5,2636.1,2.3654]
[1724282231247,0.3793,2636.4,2636.1,2.3654]
[1724282231448,3.79305,2636.4,2636.1,2.3654]
[1724282231851,0.39626021,2636.3,2636.1,2.3654]
[1724282232487,0.39626021,2636.3,2635.9,7.77706]
[1724282233551,0.39626021,2636.3,2636.0,3.79359]
[1724282237065,0.39626021,2636.3,2636.2,2.4963]
[1724282242071,0.39626021,2636.3,2636.0,2.3052]
[1724282247025,0.39626021,2636.3,2636.0,6.09882]
[1724282253805,0.39626021,2636.3,2636.0,2.3052]
[1724282257028,3.79342,2636.2,2636.0,2.3052]
[1724282257361,3.79354,2636.1,2635.6,2.2626]
[1724282257868,3.79363,2636.0,2635.6,2.2626]
[1724282258050,4.18993121,2636.0,2635.6,2.2626]
[1724282258419,4.18993121,2636.0,2635.6,6.05679]
[1724282262153,5.03015163,2636.0,2635.6,6.05679]
[1724282262370,5.03015163,2636.0,2635.6,2.2626]
[1724282262551,5.03015163,2636.0,2635.5,3.79434]
[1724282262869,5.03015163,2636.0,2635.6,3.79417]
[1724282265561,4.18993121,2636.0,2635.6,3.79417]
[1724282265774,0.39630121,2636.0,2635.6,3.79417]
[1724282267290,3.79381,2635.9,2635.5,5.41234]
[1724282268193,3.79381,2635.9,2635.5,1.618]
[1724282268408,3.79406,2635.7,2635.2,3.79475]
[1724282268757,3.79406,2635.7,2635.3,3.79462]
[1724282270499,4.59229712,2635.8,2635.3,7.58915]
[1724282270698,4.59229712,2635.8,2635.3,3.79453]
[1724282270879,0.74777112,2635.7,2635.3,3.79453]
[1724282271603,0.74777112,2635.7,2635.3,5.41253]
[1724282271751,3.79391,2635.8,2635.3,5.41253]
[1724282271957,3.79409,2635.7,2635.3,5.41253]
[1724282273353,0.39634073,2635.6,2635.3,5.41253]
[1724282276662,0.39634073,2635.6,2635.4,2.4412]
[1724282278268,3.79436,2635.5,2635.0,6.23624]
[1724282278483,5.83162007,2635.4,2635.0,2.4412]
[1724282278820,4.21362007,2635.4,2635.0,2.4412]
[1724282279604,4.21362007,2635.4,2635.0,6.23626]
[1724282280069,0.41907007,2635.4,2635.0,10.03126]
[1724282280299,3.79435,2635.5,2635.0,10.03119]
[1724282280702,3.79435,2635.5,2635.0,6.23619]
[1724282281199,3.79435,2635.5,2635.0,7.85419]
[1724282282485,3.79435,2635.5,2635.1,3.79491]
[1724282285630,3.97233607,2635.5,2635.1,3.79491]
[1724282286019,3.79435,2635.5,2635.1,3.79491]
[1724282287410,7.58877,2635.5,2635.0,7.85423]
[1724282287610,3.79435,2635.5,2635.0,7.85423]
[1724282289737,7.58883,2635.5,2635.0,7.85423]
[1724282290533,3.79435,2635.5,2635.0,7.85423]
[1724282290833,7.58877,2635.5,2635.0,7.85423]
[1724282291140,3.79449,2635.4,2635.0,7.85423]
[1724282291293,3.79449,2635.4,2635.0,4.0592]
[1724282291644,3.79464,2635.3,2634.9,3.79512]
[1724282291811,4.19101006,2635.3,2634.8,7.67874]
[1724282292307,3.79478,2635.2,2634.8,7.67874]
[1724282293435,4.19101006,2635.3,2634.8,7.67874]
[1724282294143,4.19101006,2635.3,2634.8,11.47402]
[1724282294912,4.19101006,2635.3,2634.9,3.7952]
[1724282295106,0.39637006,2635.3,2635.0,5.41305]
[1724282295309,0.39637006,2635.3,2635.1,2.3112]
[1724282295509,0.39637006,2635.3,2635.2,1.618]
[1724282295923,0.39637006,2635.3,2635.1,6.10605]
[1724282299184,0.39637006,2635.3,2635.2,5.41277]
[1724282299855,0.39637006,2635.3,2635.1,6.10611]
[1724282302197,0.39637006,2635.3,2635.2,3.79477]
[1724282302355,0.39637006,2635.3,2635.2,5.41277]
[1724282302877,0.39637006,2635.3,2635.2,7.81717]
[1724282306512,0.39637006,2635.3,2635.2,6.19917]
[1724282306875,0.39637006,2635.3,2635.2,2.4044]
[1724282307274,0.39637006,2635.3,2635.0,3.79498]
[1724282307523,0.39637006,2635.3,2634.9,6.24299]
[1724282308495,4.19106006,2635.3,2634.8,3.79532]
[1724282308702,3.79479,2635.2,2634.7,1.618]
[1724282309185,6.18709,2635.2,2634.7,3.79548]
[1724282312228,3.79494,2635.1,2634.6,3.7955]
[1724282312411,3.79494,2635.1,2634.4,17.52945]
[1724282312412,3.79512,2635.0,2634.4,17.52945]
[1724282312606,4.793323,2635.0,2634.5,3.79576]
[1724282312824,0.39633529,2634.9,2634.5,3.79576]
[1724282313848,0.39633529,2634.9,2634.7,1.618]
[1724282314013,0.39633529,2634.9,2634.8,2.4478]
[1724282315804,0.39633529,2634.9,2634.8,6.24315]
[1724282318434,0.39633529,2634.9,2634.8,2.4478]
[1724282318626,0.39633529,2634.9,2634.5,4.1053]
[1724282319062,4.19156529,2634.9,2634.5,2.4873]
[1724282320250,4.19156529,2634.9,2634.5,7.90107]
[1724282320867,0.39633529,2634.9,2634.5,7.90107]
[1724282327164,0.39633529,2634.9,2634.6,3.79563]
[1724282332458,0.39633529,2634.9,2634.6,3.79556]
[1724282332753,0.39633529,2634.9,2634.7,3.79542]
[1724282335584,0.39633529,2634.9,2634.8,3.79535]
[1724282337505,0.39633529,2634.9,2634.8,6.11505]
[1724282337800,0.39633529,2634.9,2634.8,11.063246]
[1724282338353,0.39633529,2634.9,2634.8,7.267896]
[1724282340255,0.39633529,2634.9,2634.5,2.3404]
[1724282340488,0.39633529,2634.9,2634.5,6.1361]
[1724282341558,0.39633529,2634.9,2634.7,6.13579]
[1724282341895,0.39633529,2634.9,2634.8,3.79535]
[1724282342105,0.39633529,2634.9,2634.7,6.13579]
[1724282342674,0.39633529,2634.9,2634.8,3.79535]
[1724282343571,0.39633529,2634.9,2634.8,10.0547]
[1724282344021,0.39633529,2634.9,2634.8,6.25935]
[1724282347571,0.39633529,2634.9,2634.8,2.464]
[1724282377955,0.39633529,2634.9,2634.8,6.25935]
[1724282378461,0.39633529,2634.9,2634.8,2.464]
[1724282381628,0.39633529,2634.9,2634.8,6.25935]
[1724282383753,0.39633529,2634.9,2634.8,2.464]
[1724282386165,0.39633529,2634.9,2634.6,19.44]
[1724282386332,4.46900341,2634.9,2634.6,19.44]
[1724282386532,6.56880115,2634.9,2634.6,19.44]
[1724282386932,3.79542,2634.8,2634.6,19.44]
[1724282387129,6.20442,2634.8,2634.7,19.44]
[1724282387741,8.58156586,2634.8,2634.7,19.44]
[1724282388879,3.79542,2634.8,2634.7,19.44]
[1724282389079,4.19164529,2634.9,2634.7,19.44]
[1724282390279,4.19164529,2634.9,2634.8,3.79535]
[1724282390280,0.39633529,2634.9,2634.8,3.79535]
[1724282390481,0.39633529,2634.9,2634.7,21.058]
[1724282390685,0.39633529,2634.9,2634.7,19.44]
[1724282392194,4.19158529,2634.9,2634.7,19.44]
[1724282393253,4.19158529,2634.9,2634.5,19.44]
[1724282394317,4.19158529,2634.9,2634.5,23.23577]
[1724282394908,3.79537,2634.8,2634.5,19.44]
[1724282395592,3.79537,2634.8,2634.4,6.07931]
[1724282395993,0.39633529,2634.9,2634.4,9.87514]
[1724282396194,0.39633529,2634.9,2634.4,6.07931]
[1724282396397,4.19155529,2634.9,2634.5,3.79577]
[1724282396595,0.39633529,2634.9,2634.5,3.79577]
[1724282398141,0.39633529,2634.9,2634.6,3.7956]
[1724282401307,9.16999944,2635.1,2634.6,3.7956]
[1724282401714,2.37506944,2635.0,2634.6,3.7956]
[1724282403899,6.79493,2635.1,2634.6,3.7956]
[1724282403900,9.16999944,2635.1,2634.6,3.7956]
[1724282404103,5.37506944,2635.1,2634.9,3.79518]
[1724282404337,5.37506944,2635.2,2634.8,6.23274]
[1724282404646,10.05177788,2635.2,2634.8,3.79534]
[1724282404855,12.31347788,2635.2,2634.7,3.79549]
[1724282406658,12.31347788,2635.2,2634.8,3.79532]
[1724282406958,2.37506944,2635.1,2634.8,3.79532]
[1724282407248,12.31347788,2635.2,2634.8,3.79532]
[1724282407418,2.37506944,2635.1,2634.8,3.79532]
[1724282408101,2.37506944,2635.1,2634.7,3.79549]
[1724282408321,2.37506944,2635.1,2634.7,7.59091]
[1724282408869,2.37506944,2635.1,2634.7,3.79542]
[1724282409050,3.03930924,2635.1,2634.7,3.79542]
[1724282410139,0.39628578,2635.0,2634.7,3.79542]
[1724282411168,4.19136578,2635.0,2634.6,3.79564]
[1724282411463,0.7230675,2634.9,2634.6,3.79564]
[1724282413461,4.19136578,2635.0,2634.6,3.79564]
[1724282413664,0.39628578,2635.0,2634.7,2.3489]
[1724282415568,0.39628578,2635.0,2634.7,6.14434]
[1724282418181,0.39628578,2635.0,2634.7,9.93976]
[1724282418386,0.39628578,2635.0,2634.8,3.79528]
[1724282419071,0.39628578,2635.0,2634.9,3.79521]
[1724282420455,0.39628578,2635.0,2634.9,10.970273]
[1724282420895,0.39628578,2635.0,2634.9,7.175063]
[1724282421165,0.39628578,2635.0,2634.8,3.79534]
[1724282421505,0.39628578,2635.0,2634.9,6.05461]
[1724282427061,0.39628578,2635.0,2634.9,9.84982]
[1724282428394,0.39628578,2635.0,2634.9,11.46782]
[1724282431895,0.46396334,2635.0,2634.9,11.46782]
[1724282432326,0.46396334,2635.0,2634.9,12.614602]
[1724282432849,0.39628578,2635.0,2634.9,12.614602]
[1724282433348,0.46364496,2635.0,2634.9,12.614602]
[1724282441205,0.39628578,2635.0,2634.9,12.614602]
[1724282442807,0.46368993,2635.0,2634.9,12.614602]
[1724282444721,0.46368993,2635.0,2634.9,10.996602]
[1724282451182,0.46368993,2635.0,2634.9,14.791812]
[1724282451483,0.39628578,2635.0,2634.9,14.791812]
[1724282452137,0.46050113,2635.0,2634.9,14.791812]
[1724282453887,0.46050113,2635.0,2634.9,10.996602]
[1724282455562,0.46050113,2635.0,2634.9,30.436602]
[1724282455901,0.39628578,2635.0,2634.9,30.436602]
[1724282457155,0.46050863,2635.0,2634.9,30.436602]
[1724282463987,0.46050863,2635.0,2634.9,30.436602]
[1724282467008,0.39628578,2635.0,2634.9,30.436602]
[1724282467673,0.46053483,2635.0,2634.9,30.436602]
[1724282469890,0.39628578,2635.0,2634.9,30.436602]
[1724282470089,0.46053483,2635.0,2634.9,30.436602]
[1724282477454,0.39628578,2635.0,2634.9,30.436602]
[1724282477655,0.45835219,2635.0,2634.9,30.436602]
[1724282477868,0.39628578,2635.0,2634.9,30.436602]
[1724282478699,0.45842469,2635.0,2634.9,30.436602]
[1724282479066,0.39628578,2635.0,2634.9,30.436602]
[1724282479451,0.45836846,2635.0,2634.9,30.436602]
[1724282479891,0.39628578,2635.0,2634.9,30.436602]
[1724282480714,0.45836846,2635.0,2634.9,30.436602]
[1724282481271,0.39628578,2635.0,2634.9,30.436602]
[1724282481719,0.45836846,2635.0,2634.9,30.436602]
[1724282484072,0.39628578,2635.0,2634.9,30.436602]
[1724282484666,0.45836846,2635.0,2634.9,30.436602]
[1724282485068,0.39628578,2635.0,2634.9,30.436602]
[1724282490188,0.39628578,2635.0,2634.7,6.15548]
[1724282490393,0.39628578,2635.0,2634.2,3.54307545]
[1724282490394,4.0375,2634.9,2634.2,19.44]
[1724282490647,3.79569,2634.6,2634.1,23.23634]
[1724282490847,2.48103181,2634.5,2634.2,3.79613]
[1724282491055,0.06153181,2634.5,2634.2,3.79613]
[1724282491346,0.39641903,2634.4,2634.1,19.44]
[1724282491502,0.39641903,2634.4,2634.0,3.79638]